bitfinex-derivatives/quotes_ETHF0:USTF0_20241105
["timestamp","ask_amount","ask_price","bid_price","bid_amount"]
[1730778563316,0.41441,2414.6,2414.5,3.2078]
[1730778563818,3.64939313,2414.6,2414.5,3.2078]
[1730778565719,7.79099313,2414.6,2414.5,3.2078]
[1730778566120,3.64939313,2414.6,2414.5,3.2078]
[1730778567117,3.23498313,2414.6,2414.1,0.097]
[1730778567320,0.902,2414.5,2414.3,3.2078]
[1730778567716,0.4316,2414.4,2414.3,3.2078]
[1730778569118,7.80818313,2414.4,2413.9,3.2078]
[1730778569320,3.62228,2414.2,2413.7,0.83976]
[1730778569515,3.62228,2414.2,2413.8,0.41454]
[1730778569516,0.4242,2414.1,2413.8,0.41454]
[1730778569714,0.4316,2414.0,2413.8,0.41454]
[1730778569910,0.4316,2414.0,2413.7,0.4252]
[1730778570221,0.4316,2414.0,2413.5,0.4332]
[1730778570222,0.41456,2413.8,2413.5,0.4332]
[1730778570418,3.2078,2413.9,2413.5,0.4332]
[1730778570419,0.8677,2413.7,2413.5,0.4332]
[1730778570823,41.6677,2413.7,2413.5,0.4332]
[1730778571127,0.4235,2413.6,2413.4,0.853]
[1730778571322,0.4235,2413.6,2413.4,0.4384]
[1730778571620,41.2235,2413.6,2413.4,0.4384]
[1730778572124,41.2235,2413.6,2413.2,0.84114]
[1730778572428,41.2235,2413.6,2413.3,0.63247859]
[1730778572721,41.2235,2413.6,2413.2,0.84114]
[1730778572925,41.2235,2413.6,2413.3,0.63249161]
[1730778573114,44.45848313,2413.6,2413.1,3.6462]
[1730778573311,0.41462,2413.4,2413.1,3.2078]
[1730778573514,0.41461,2413.5,2413.1,3.2078]
[1730778573821,0.4419,2413.3,2413.1,3.2078]
[1730778574025,0.4332,2413.2,2413.1,3.2078]
[1730778575319,7.81218313,2413.2,2413.1,1.094]
[1730778575514,0.4147,2413.0,2412.6,0.097]
[1730778575730,3.2078,2412.8,2412.4,3.62258]
[1730778576420,3.2078,2412.8,2412.3,0.4568]
[1730778576421,3.2078,2412.5,2412.3,0.4568]
[1730778577118,3.23498313,2412.7,2412.3,0.4568]
[1730778577422,3.2078,2412.5,2412.2,0.4572]
[1730778578318,3.2078,2412.5,2412.1,0.47574]
[1730778578521,0.4629,2412.4,2412.1,0.47574]
[1730778578927,40.8,2412.3,2412.1,0.47574]
[1730778579420,3.2078,2412.2,2412.1,0.01894]
[1730778588135,3.62262,2412.2,2412.1,0.01894]
[1730778588336,3.2078,2412.2,2412.1,0.01894]
[1730778589126,40.8,2412.4,2412.1,0.01894]
[1730778589326,3.2078,2412.5,2412.1,0.43376]
[1730778589528,3.2078,2412.5,2412.1,0.01894]
[1730778589938,3.2078,2412.5,2412.3,0.4148]
[1730778590123,3.2078,2412.5,2412.4,0.8964]
[1730778596839,3.2078,2412.5,2412.4,1.31119]
[1730778597034,3.2078,2412.5,2412.4,5.45599]
[1730778598034,0.4438,2412.9,2412.4,5.45599]
[1730778598245,0.4438,2412.9,2412.4,1.31119]
[1730778598443,3.2078,2412.5,2412.4,0.8964]
[1730778598942,3.2078,2412.5,2412.4,5.45599]
[1730778599239,3.2078,2412.5,2412.4,5.0412]
[1730778599639,3.2078,2412.5,2412.4,0.8964]
[1730778599948,3.2078,2412.5,2412.0,0.4406]
[1730778600145,3.2078,2412.5,2412.2,0.41481]
[1730778600346,3.2078,2412.5,2412.2,0.41482]
[1730778600642,3.2078,2412.5,2412.1,1.35033]
[1730778601144,3.2078,2412.5,2412.2,0.41481]
[1730778601543,3.2078,2412.5,2412.3,0.4148]
[1730778602250,3.2078,2412.5,2412.2,0.41481]
[1730778602643,3.2078,2412.5,2412.1,0.9355]
[1730778603049,3.2078,2412.5,2412.3,0.41479]
[1730778603743,3.2078,2412.5,2412.1,0.9355]
[1730778604048,3.2078,2412.5,2412.1,1.35033]
[1730778604252,3.62257,2412.5,2412.1,1.35033]
[1730778604845,3.2078,2412.5,2412.1,1.35033]
[1730778605045,0.41477,2412.6,2412.1,1.35033]
[1730778605241,3.2078,2412.5,2412.1,1.35033]
[1730778605447,0.424,2412.4,2412.1,1.35033]
[1730778605949,0.424,2412.4,2412.1,0.9355]
[1730778606145,3.2078,2412.5,2412.3,0.41479]
[1730778607449,3.2078,2412.5,2412.4,0.41479]
[1730778607653,40.897,2413.0,2412.8,0.41471]
[1730778607855,44.0078,2413.0,2412.9,0.8567]
[1730778608154,3.2078,2413.0,2412.9,0.442]
[1730778608350,3.2078,2413.0,2412.9,0.8567]
[1730778608656,1.2874,2413.3,2412.9,0.8567]
[1730778608857,1.2874,2413.3,2412.9,0.442]
[1730778609151,40.8,2413.2,2413.0,0.41468]
[1730778609658,40.8,2413.2,2412.9,0.85669]
[1730778609845,40.8,2413.2,2413.1,0.41467]
[1730778610050,3.2078,2413.4,2412.9,4.586]
[1730778610251,3.2078,2413.4,2413.2,0.41464]
[1730778610553,44.0078,2413.4,2413.1,0.41466]
[1730778610857,44.0078,2413.4,2413.2,0.41464]
[1730778611652,44.0078,2413.4,2413.0,0.41467]
[1730778611851,44.0078,2413.4,2413.0,0.41468]
[1730778612555,44.0078,2413.4,2413.1,0.41466]
[1730778612760,44.0078,2413.4,2412.9,0.442]
[1730778612960,44.0078,2413.4,2413.1,0.41466]
[1730778613164,44.0078,2413.4,2412.9,0.442]
[1730778613455,44.0078,2413.4,2413.2,0.41465]
[1730778613849,44.0078,2413.4,2412.9,0.442]
[1730778613850,44.0078,2413.4,2413.3,0.41463]
[1730778614052,3.2078,2413.4,2413.3,0.41463]
[1730778614255,3.2078,2413.4,2413.3,4.55863]
[1730778616249,3.2078,2413.4,2413.3,0.41463]
[1730778616457,6.44278313,2413.4,2412.9,0.442]
[1730778616653,3.2078,2413.4,2413.1,0.41466]
[1730778616850,3.2078,2413.4,2412.9,0.442]
[1730778617063,3.2078,2413.4,2413.2,0.41465]
[1730778617458,3.2078,2413.4,2412.9,0.442]
[1730778617459,3.2078,2413.4,2413.1,0.41466]
[1730778617960,3.2078,2413.4,2413.2,0.41465]
[1730778620059,40.8,2413.3,2413.2,0.41465]
[1730778621852,40.8,2413.3,2412.9,0.442]
[1730778622058,40.8,2413.3,2413.1,0.41466]
[1730778622663,40.8,2413.3,2413.2,0.41465]
[1730778623260,40.8,2413.3,2412.9,0.442]
[1730778623261,41.2325,2413.3,2412.9,0.442]
[1730778623461,41.2325,2413.3,2413.1,0.41467]
[1730778624363,41.2325,2413.3,2413.2,0.41465]
[1730778624965,3.2078,2413.4,2413.2,4.144]
[1730778625166,3.2078,2413.4,2413.3,4.55863]
[1730778625464,3.2078,2413.9,2413.4,1.03655]
[1730778625667,3.2078,2413.9,2413.7,0.41456]
[1730778626055,0.209,2414.8,2414.2,0.41448]
[1730778626261,0.8837,2415.1,2414.9,0.41434]
[1730778626458,0.8837,2415.1,2414.7,6.44278313]
[1730778626657,0.8837,2415.1,2415.0,3.64932313]
[1730778626857,0.4252,2415.1,2415.0,3.64932313]
[1730778627063,41.231,2415.2,2415.1,0.41433]
[1730778627064,40.8,2415.2,2415.1,0.41433]
[1730778627464,40.8,2415.2,2415.1,4.55513]
[1730778628362,0.9088,2415.6,2415.1,4.1408]
[1730778628558,0.9088,2415.6,2415.0,6.44278313]
[1730778628763,40.8,2415.5,2415.3,0.41428]
[1730778629460,40.8,2415.5,2415.0,6.44278313]
[1730778629766,40.8,2415.5,2415.3,0.41428]
[1730778629970,40.8,2415.5,2415.1,0.41433]
[1730778630267,40.8,2415.5,2415.2,0.4143]
[1730778630468,40.8,2415.5,2415.3,0.41428]
[1730778632163,40.8,2415.5,2415.2,0.4143]
[1730778632768,40.8,2415.5,2415.3,0.41429]
[1730778633565,40.8,2415.5,2415.1,0.41433]
[1730778633770,40.8,2415.5,2415.3,0.41428]
[1730778634161,40.8,2415.5,2415.2,0.4143]
[1730778634467,40.8,2415.5,2415.0,6.44278313]
[1730778634771,40.8,2415.5,2415.4,0.41427]
[1730778634963,40.8,2415.5,2415.3,0.41428]
[1730778635664,40.8,2415.5,2415.0,6.44278313]
[1730778636066,40.8,2415.5,2415.3,0.41428]
[1730778636669,40.8,2415.5,2415.2,0.4143]
[1730778637273,40.8,2415.5,2415.3,0.41428]
[1730778637772,40.8,2415.5,2415.4,0.41427]
[1730778638171,40.8,2415.5,2415.0,6.44278313]
[1730778638570,40.8,2415.5,2415.3,0.41428]
[1730778638774,44.0078,2415.5,2415.3,0.41428]
[1730778639869,44.0078,2415.5,2415.0,6.44278313]
[1730778640067,44.0078,2415.5,2415.4,0.41427]
[1730778640272,40.8,2415.5,2415.4,0.41427]
[1730778641881,0.4521,2415.8,2415.5,0.41425]
[1730778642372,40.8,2415.7,2415.4,0.41426]
[1730778643376,40.8,2415.7,2415.2,6.44278313]
[1730778643677,40.8,2415.7,2415.5,0.41426]
[1730778643877,40.8,2415.7,2415.4,0.41427]
[1730778644881,40.8,2415.7,2415.5,0.41425]
[1730778645377,40.8,2415.7,2415.4,0.41426]
[1730778645580,40.8,2415.7,2415.5,0.41425]
[1730778646372,40.8,2415.7,2415.4,0.41426]
[1730778646578,40.8,2415.7,2415.5,0.41425]
[1730778651178,40.8,2415.7,2415.6,0.41424]
[1730778651374,0.4521,2415.8,2415.5,3.23498313]
[1730778651573,0.4521,2415.8,2415.7,0.41422]
[1730778651979,41.2521,2415.8,2415.7,0.41422]
[1730778652376,0.4521,2415.8,2415.7,0.41422]
[1730778656687,0.434,2415.9,2415.8,0.41421]
[1730778658582,0.434,2415.9,2415.5,6.44278313]
[1730778658987,0.434,2415.9,2415.7,0.41421]
[1730778659584,0.434,2415.9,2415.3,1.4657]
[1730778659585,4.1392,2415.8,2415.3,3.23498313]
[1730778659787,0.4286,2415.7,2415.3,3.23498313]
[1730778659988,0.4286,2415.7,2415.6,0.41424]
[1730778660295,0.4286,2415.7,2415.5,0.41426]
[1730778660498,0.4286,2415.7,2415.3,3.23498313]
[1730778660788,0.4286,2415.7,2415.6,0.41424]
[1730778661495,0.4286,2415.7,2415.3,3.23498313]
[1730778661796,0.4286,2415.7,2415.5,0.41424]
[1730778662787,4.14,2415.6,2415.0,0.096]
[1730778663093,4.14,2415.6,2414.9,3.3198]
[1730778663094,0.4472,2415.5,2414.8,1.13193]
[1730778663288,0.4339,2415.4,2414.8,1.03593]
[1730778663486,0.4339,2415.4,2415.2,0.4143]
[1730778664390,0.84818,2415.4,2415.0,0.41434]
[1730778664587,0.4339,2415.4,2414.8,0.41437]
[1730778664793,0.4143,2415.3,2414.8,0.41437]
[1730778665003,0.4339,2415.4,2414.9,0.41435]
[1730778665487,0.41429,2415.3,2414.9,0.41435]
[1730778665697,0.4339,2415.4,2414.9,0.41435]
[1730778665885,0.4361,2415.2,2414.9,0.41435]
[1730778666799,0.4361,2415.2,2414.8,0.41437]
[1730778667496,3.6439,2415.2,2414.8,0.41437]
[1730778667998,3.6439,2415.2,2414.9,0.41435]
[1730778668197,3.6439,2415.2,2414.7,0.8862]
[1730778668389,3.6439,2415.2,2414.8,0.41437]
[1730778669895,3.6439,2415.2,2414.7,0.8862]
[1730778670201,3.6439,2415.2,2414.8,0.5688376]
[1730778670395,3.2078,2415.2,2415.1,0.41433]
[1730778670588,0.4339,2415.4,2415.3,0.41429]
[1730778670793,40.8,2416.0,2415.3,0.41429]
[1730778670794,0.305,2416.5,2415.6,0.41424]
[1730778670997,0.4245,2416.6,2416.3,3.23498313]
[1730778671203,0.4245,2416.6,2416.4,0.568927]
[1730778671397,0.4245,2416.6,2416.5,0.983017]
[1730778671598,0.4245,2416.6,2416.5,0.568927]
[1730778671902,0.4245,2416.6,2416.5,5.121417]
[1730778672494,3.2078,2417.0,2416.8,0.41403]
[1730778672802,3.2078,2417.0,2416.7,3.64903313]
[1730778673708,3.2078,2417.0,2416.7,3.23498313]
[1730778673899,3.2078,2417.0,2416.7,3.64902313]
[1730778674393,0.41396,2417.3,2416.7,3.64902313]
[1730778674594,3.62178,2417.1,2416.5,3.2078]
[1730778674795,3.2078,2417.1,2416.7,0.41404]
[1730778675295,3.2078,2417.1,2416.6,0.41406]
[1730778675703,0.41397,2417.2,2416.6,0.41406]
[1730778675896,0.41397,2417.2,2416.4,3.23498313]
[1730778675897,3.2078,2417.1,2416.7,0.41405]
[1730778676405,3.2078,2417.1,2416.6,0.41406]
[1730778678403,3.2078,2417.1,2416.6,0.41407]
[1730778679199,3.62179,2417.1,2416.5,3.62188]
[1730778679404,3.2078,2417.1,2416.5,3.2078]
[1730778679606,40.8,2417.0,2416.5,3.62188]
[1730778680705,40.8,2417.0,2416.5,3.2078]
[1730778681010,40.8,2417.0,2416.5,3.62188]
[1730778681608,40.8,2417.0,2416.5,0.41408]
[1730778681801,40.8,2417.0,2416.5,3.62188]
[1730778682605,0.41402,2416.9,2416.3,0.5607]
[1730778682803,44.03498313,2417.0,2416.3,0.4647]
[1730778682804,0.4641,2416.8,2416.3,0.4647]
[1730778683106,0.4641,2416.8,2416.5,0.41407]
[1730778683500,0.4641,2416.8,2416.3,0.4647]
[1730778684101,0.4641,2416.8,2416.4,0.4141]
[1730778684304,0.4641,2416.8,2416.4,0.41409]
[1730778684698,0.4641,2416.8,2416.3,0.4647]
[1730778684901,0.4641,2416.8,2416.4,0.41409]
[1730778685103,40.8,2416.7,2416.4,0.41409]
[1730778685309,40.8,2416.7,2416.3,0.87881]
[1730778685615,41.2692,2416.7,2416.3,0.87881]
[1730778686514,41.2692,2416.7,2416.4,0.4141]
[1730778687806,41.2692,2416.7,2416.3,0.87881]
[1730778689015,41.2692,2416.7,2416.2,3.2078]
[1730778689314,41.2692,2416.7,2416.0,0.096]
[1730778689315,3.2078,2416.5,2416.0,0.41416]
[1730778689615,3.6219,2416.5,2416.0,0.41416]
[1730778690610,40.8,2416.4,2415.9,0.4494]
[1730778690809,40.8,2416.4,2416.0,0.41416]
[1730778691622,40.8,2416.4,2415.9,0.4494]
[1730778692311,3.2078,2416.5,2416.2,0.41413]
[1730778692511,3.2078,2416.5,2416.4,0.4141]
[1730778692715,0.4692,2416.7,2416.2,3.2078]
[1730778693020,0.4692,2416.7,2416.3,0.41411]
[1730778693021,41.2692,2416.7,2416.3,0.41411]
[1730778693214,41.2692,2416.7,2416.2,3.2078]
[1730778693415,41.2692,2416.7,2416.2,3.62193]
[1730778693718,41.2692,2416.7,2416.3,0.41412]
[1730778694113,0.41408,2416.6,2416.0,0.4269]
[1730778694418,0.41408,2416.6,2416.0,0.84106]
[1730778694615,0.41408,2416.6,2416.0,0.4269]
[1730778694912,41.2692,2416.7,2416.1,0.41415]
[1730778695105,0.41407,2416.6,2416.1,0.41415]
[1730778695414,41.2692,2416.7,2416.0,0.4269]
[1730778695602,3.62189,2416.5,2416.0,0.84106]
[1730778695807,3.62189,2416.5,2416.0,0.4269]
[1730778696017,3.2078,2416.5,2416.1,0.41415]
[1730778696609,3.62189,2416.5,2416.0,0.84106]
[1730778697111,3.2078,2416.5,2416.1,0.41415]
[1730778697619,3.2078,2416.5,2416.2,0.41414]
[1730778697811,3.2078,2416.5,2416.1,0.41415]
[1730778698619,0.41408,2416.6,2416.1,0.41415]
[1730778698815,3.62188,2416.6,2416.1,0.41415]
[1730778699610,0.41416,2416.1,2415.8,0.096]
[1730778699815,3.62192,2416.3,2415.8,0.41419]
[1730778700016,1.3546,2416.2,2415.9,0.41418]
[1730778700222,1.3546,2416.2,2415.8,0.41419]
[1730778701224,1.3546,2416.2,2415.5,0.9056]
[1730778701522,1.3546,2416.2,2415.8,0.4142]
[1730778702017,1.76874,2416.2,2415.7,0.41421]
[1730778702527,1.3546,2416.2,2415.8,0.4142]
[1730778702726,1.3546,2416.2,2415.9,0.41419]
[1730778705214,1.3546,2416.2,2415.5,4.1134]
[1730778705215,1.3546,2416.2,2415.8,0.41419]
[1730778705422,1.3546,2416.2,2416.0,0.41417]
[1730778705810,0.4623,2416.2,2416.0,0.41417]
[1730778706012,0.4623,2416.2,2415.9,0.41417]
[1730778706213,0.4623,2416.2,2416.0,0.4628]
[1730778706621,0.4623,2416.2,2416.0,0.87697]
[1730778707123,0.4623,2416.2,2416.0,0.4628]
[1730778708116,3.2078,2417.0,2416.1,4.1392]
[1730778708316,3.6635,2417.2,2417.0,0.414]
[1730778708719,3.6635,2417.2,2416.7,0.4296]
[1730778709020,3.6635,2417.2,2416.8,0.4261]
[1730778709522,0.4557,2417.2,2416.9,3.23498313]
[1730778709714,0.9168,2417.3,2417.2,0.41397]
[1730778710120,0.9168,2417.3,2417.1,0.41398]
[1730778710826,0.9168,2417.3,2417.2,0.41397]
[1730778711226,0.9168,2417.3,2417.1,0.41397]
[1730778712617,0.9168,2417.3,2416.9,3.23498313]
[1730778712822,0.9168,2417.3,2417.1,0.41397]
[1730778713228,0.9168,2417.3,2416.9,3.23498313]
[1730778713438,0.9168,2417.3,2417.1,0.41397]
[1730778713730,0.9168,2417.3,2416.9,3.23498313]
[1730778713923,0.9168,2417.3,2417.1,0.41398]
[1730778714826,0.9168,2417.3,2417.2,0.41397]
[1730778715221,0.448,2417.3,2417.2,0.41397]
[1730778715421,0.448,2417.3,2416.9,6.44278313]
[1730778715624,0.448,2417.3,2417.1,0.41397]
[1730778716024,3.2078,2417.5,2417.2,0.41396]
[1730778717538,3.2078,2417.5,2417.1,0.41397]
[1730778719127,3.2078,2417.5,2416.9,6.44278313]
[1730778719529,3.2078,2417.5,2417.1,0.41397]
[1730778721334,1.3545,2417.6,2417.1,0.41397]
[1730778721535,3.2078,2417.5,2417.1,0.41397]
[1730778722425,3.2078,2417.5,2416.9,6.44278313]
[1730778722631,3.2078,2417.5,2417.3,0.41393]
[1730778723229,3.2078,2417.5,2416.9,7.47781313]
[1730778723431,3.2078,2417.5,2417.2,0.41396]
[1730778723636,3.2078,2417.5,2417.3,0.41394]
[1730778723932,3.2078,2417.5,2416.9,6.44278313]
[1730778724137,3.2078,2417.5,2417.2,0.41396]
[1730778724338,3.2078,2417.5,2416.9,6.44278313]
[1730778724531,3.62172,2417.5,2417.0,0.41399]
[1730778724839,3.62172,2417.5,2416.9,3.6218]
[1730778724840,0.41393,2417.4,2416.9,3.6218]
[1730778725138,0.41394,2417.4,2416.9,3.62181]
[1730778725641,3.62172,2417.5,2417.0,0.41399]
[1730778726536,3.62172,2417.5,2416.9,3.2078]
[1730778726735,3.62172,2417.5,2417.0,0.41399]
[1730778727132,3.2078,2417.5,2416.9,3.2078]
[1730778727434,3.2078,2417.5,2417.2,0.41396]
[1730778727634,3.2078,2417.5,2417.1,0.41398]
[1730778729842,3.2078,2417.5,2417.0,0.41399]
[1730778729843,3.62172,2417.5,2417.0,0.41399]
[1730778730041,0.41392,2417.5,2417.0,0.41399]
[1730778730338,0.41392,2417.5,2416.8,3.66108313]
[1730778730539,3.2078,2417.5,2417.1,0.41397]
[1730778731237,3.2078,2417.5,2416.8,3.66108313]
[1730778731442,3.2078,2417.5,2417.2,0.41396]
[1730778731734,3.2078,2417.5,2417.1,0.41397]
[1730778732339,3.62172,2417.5,2417.1,0.41397]
[1730778732548,0.41393,2417.4,2417.0,0.41399]
[1730778732946,3.2078,2417.5,2417.0,0.41399]
[1730778733239,3.62172,2417.5,2417.0,0.41399]
[1730778733445,0.41393,2417.4,2417.0,0.41399]
[1730778733648,3.62172,2417.5,2417.0,0.41399]
[1730778734539,3.2078,2417.3,2417.0,0.41399]
[1730778735340,3.2078,2417.4,2417.0,0.41399]
[1730778735549,3.62173,2417.4,2417.0,0.41399]
[1730778735935,3.2078,2417.4,2417.0,0.41399]
[1730778737746,3.2078,2417.4,2416.8,3.66108313]
[1730778737951,3.2078,2417.4,2417.1,0.41398]
[1730778738848,3.2078,2417.4,2416.8,3.66108313]
[1730778739149,3.2078,2417.4,2417.0,0.41399]
[1730778739338,3.2078,2417.4,2416.8,3.66108313]
[1730778739538,3.2078,2417.4,2417.1,0.41397]
[1730778740151,3.2078,2417.4,2417.2,0.41396]
[1730778740348,3.2078,2417.4,2417.3,0.41395]
[1730778744053,1.7509,2417.6,2417.3,0.41395]
[1730778744251,3.2078,2417.5,2417.3,0.41395]
[1730778744755,3.2078,2417.5,2417.4,0.41393]
[1730778744947,3.2078,2417.5,2417.3,0.41394]
[1730778745451,3.2078,2417.5,2417.4,0.41393]
[1730778746151,3.2078,2417.5,2417.3,0.41394]
[1730778748055,3.2078,2417.5,2417.2,0.41396]
[1730778750860,1.75091,2417.6,2417.2,0.41396]
[1730778751253,4.95871,2417.6,2417.2,0.41396]
[1730778751456,1.75091,2417.6,2417.2,0.41396]
[1730778751960,1.337,2417.6,2417.2,0.41396]
[1730778752160,4.5448,2417.6,2417.2,0.41396]
[1730778753055,4.5448,2417.6,2416.9,6.90038313]
[1730778753245,4.5448,2417.6,2417.0,0.59419436]
[1730778753446,8.86195445,2417.6,2417.3,1.4910913]
[1730778753854,4.5448,2417.6,2417.3,1.4910913]
[1730778754263,4.31715445,2417.5,2417.3,1.4910913]
[1730778754961,4.31715445,2417.5,2417.3,1.9050313]
[1730778755262,8.86195445,2417.6,2417.3,1.9050313]
[1730778755562,8.86195445,2417.6,2417.3,1.4910913]
[1730778756154,8.86195445,2417.6,2416.9,4.70043]
[1730778756155,4.5448,2417.6,2417.4,2.08999883]
[1730778756356,4.5448,2417.6,2417.5,0.41391]
[1730778756357,1.337,2417.6,2417.5,0.41391]
[1730778756659,1.337,2417.6,2417.5,1.01269881]
[1730778757163,1.337,2417.6,2417.5,0.59878881]
[1730778757463,1.337,2417.6,2417.5,1.01269881]
[1730778757862,1.337,2417.6,2417.4,2.3328113]
[1730778758257,1.337,2417.6,2417.5,0.41391]
[1730778758860,0.8871,2417.6,2417.5,0.41391]
[1730778760267,40.8,2417.8,2417.7,0.41388]
[1730778760468,41.6961,2417.8,2417.7,1.9049713]
[1730778760767,41.6961,2417.8,2417.7,1.4910913]
[1730778761656,41.6961,2417.8,2417.7,1.9049713]
[1730778761862,0.8961,2417.8,2417.7,1.9049713]
[1730778765061,4.51776,2417.8,2417.4,2.3328213]
[1730778765265,4.1039,2417.8,2417.4,1.9188913]
[1730778765463,4.1039,2417.8,2417.4,2.3328113]
[1730778765774,40.8,2417.7,2417.5,0.41391]
[1730778766069,40.8,2417.7,2417.6,1.4910913]
[1730778766575,0.44,2417.8,2417.7,0.41388]
[1730778766869,40.8,2417.8,2417.7,1.9049713]
[1730778768765,0.4612,2418.0,2417.9,0.41385]
[1730778768969,0.4511,2418.1,2417.9,1.4910913]
[1730778769182,0.4511,2418.1,2418.0,0.41383]
[1730778769571,0.4511,2418.1,2417.9,3.64330413]
[1730778770171,3.2078,2418.2,2417.9,3.22946413]
[1730778770476,3.2078,2418.2,2418.0,0.41382]
[1730778770863,41.2658,2418.4,2418.1,7.36466413]
[1730778771072,3.2078,2418.5,2418.2,0.4433]
[1730778771273,3.2078,2418.5,2418.4,0.41376]
[1730778771767,0.8933,2418.6,2418.3,0.86616]
[1730778771971,0.8933,2418.6,2418.3,0.4524]
[1730778772362,0.8933,2418.6,2418.3,0.86618]
[1730778772568,0.8933,2418.6,2418.3,0.4524]
[1730778772881,0.8933,2418.6,2418.4,0.41376]
[1730778773577,0.8933,2418.6,2418.4,3.64322413]
[1730778774075,41.2658,2418.7,2418.5,0.41374]
[1730778774268,0.4658,2418.7,2418.5,0.41374]
[1730778774774,0.4658,2418.7,2418.4,3.64321413]
[1730778774969,0.4658,2418.7,2418.5,0.41374]
[1730778775270,3.6362,2418.8,2418.6,0.41373]
[1730778775977,3.6362,2418.8,2418.5,0.41374]
[1730778776273,3.6362,2418.8,2418.4,3.22946413]
[1730778776474,3.6362,2418.8,2418.5,0.41373]
[1730778777066,3.6362,2418.8,2418.6,0.41372]
[1730778777669,3.6362,2418.8,2418.6,3.64318413]
[1730778778575,3.6362,2418.8,2418.6,3.22946413]
[1730778778781,3.6362,2418.8,2418.6,3.64318413]
[1730778779674,3.6362,2418.8,2418.7,0.41371]
[1730778780184,3.6362,2418.8,2418.6,3.22946413]
[1730778780384,3.6362,2418.8,2418.7,0.41371]
[1730778780569,3.6362,2418.8,2418.7,0.4497]
[1730778780769,3.6362,2418.8,2418.7,0.86341]
[1730778780770,3.2078,2418.8,2418.7,0.86341]
[1730778781174,0.8738,2419.0,2418.8,0.41369]
[1730778781473,0.8738,2419.0,2418.7,0.4497]
[1730778781678,0.8738,2419.0,2418.8,0.41369]
[1730778782375,0.8738,2419.0,2418.9,0.41367]
[1730778782583,0.4264,2419.1,2419.0,0.41366]
[1730778782775,3.2078,2419.6,2418.8,7.81956413]
[1730778782974,4.0824,2419.6,2418.8,3.68516413]
[1730778783182,0.41358,2419.5,2419.0,0.41366]
[1730778783682,0.41358,2419.5,2419.0,0.41365]
[1730778784177,3.62141,2419.3,2418.8,4.09885413]
[1730778784582,0.4538,2419.2,2418.8,4.09885413]
[1730778784783,0.8995,2419.1,2418.8,3.68516413]
[1730778785081,0.8995,2419.1,2418.9,0.41367]
[1730778785569,0.8995,2419.1,2418.8,3.68516413]
[1730778785775,0.8995,2419.1,2418.8,4.09884413]
[1730778786480,0.8995,2419.1,2418.9,0.41367]
[1730778786886,0.8995,2419.1,2418.8,4.09884413]
[1730778787779,1.31314,2419.1,2418.8,3.68516413]
[1730778787984,1.31314,2419.1,2418.8,4.09884413]
[1730778787985,0.8995,2419.1,2418.8,4.09884413]
[1730778788177,0.8995,2419.1,2418.9,0.41367]
[1730778788677,0.4538,2419.2,2419.1,0.41364]
[1730778788884,0.4538,2419.2,2419.1,3.64310413]
[1730778789080,0.4538,2419.2,2419.1,7.77670413]
[1730778789286,0.4538,2419.2,2419.1,1.90332507]
[1730778789586,44.9375,2419.5,2419.1,5.62328507]
[1730778789779,45.79547,2419.5,2419.4,1.48968507]
[1730778789986,45.3819,2419.5,2419.4,1.48968507]
[1730778790577,45.79547,2419.5,2419.4,1.48968507]
[1730778790782,49.92827,2419.5,2419.3,1.48968507]
[1730778791083,0.41366,2419.0,2418.8,1.48968507]
[1730778791385,1.3707,2418.9,2418.7,3.6575]
[1730778791881,1.3707,2418.9,2418.3,3.32472706]
[1730778791882,3.2078,2418.8,2418.3,3.32472706]
[1730778792087,0.41372,2418.7,2418.3,3.22872706]
[1730778792388,3.6215,2418.8,2418.3,3.64249706]
[1730778792788,3.2078,2418.8,2418.3,3.22872706]
[1730778792981,3.2078,2418.8,2418.2,0.4673]
[1730778793379,3.2078,2418.7,2418.3,0.41378]
[1730778793583,3.2078,2418.7,2418.2,0.88109]
[1730778793887,3.62152,2418.7,2418.2,0.88109]
[1730778794588,40.8,2418.6,2418.2,0.88109]
[1730778794779,40.8,2418.6,2418.3,3.64250706]
[1730778795285,40.8,2418.6,2418.4,0.41375]
[1730778795988,40.8,2418.6,2418.3,3.64249706]
[1730778796282,1.3707,2418.9,2418.4,0.41375]
[1730778796588,1.78438,2418.9,2418.4,0.41375]
[1730778796786,40.8,2418.8,2418.4,0.41375]
[1730778797588,40.8,2418.8,2418.3,3.22872706]
[1730778797589,41.2137,2418.8,2418.3,3.22872706]
[1730778797880,0.41374,2418.6,2418.2,0.4673]
[1730778798281,0.4294,2418.5,2418.2,0.4673]
[1730778798484,0.9177,2418.4,2418.2,0.4673]
[1730778802680,1.33146,2418.4,2418.2,0.4673]
[1730778803085,0.9177,2418.4,2418.2,0.4673]
[1730778806594,0.9177,2418.4,2418.2,0.88109]
[1730778808889,0.9177,2418.4,2418.3,0.41378]
[1730778809088,0.9177,2418.4,2418.2,0.88108]
[1730778810390,0.9177,2418.4,2418.3,0.41378]
[1730778810899,0.9177,2418.4,2418.2,0.88109]
[1730778811396,0.9177,2418.4,2418.3,0.41378]
[1730778811601,0.9177,2418.4,2418.2,0.4673]
[1730778811896,0.9177,2418.4,2418.2,0.88108]
[1730778812401,0.9177,2418.4,2418.2,0.4673]
[1730778812592,3.2078,2418.7,2418.6,0.41373]
[1730778812790,40.8,2418.8,2418.3,3.22872706]